fUSD/lending_fUSD_20250105
["ID","MTS","AMOUNT","RATE_DAILY","PERIOD"]
[347737343,1736087465842,-500.0,9.315e-05,2]
[347737344,1736087465851,-500.0,9.315e-05,2]
[347737345,1736087465862,-1260.65,9.315e-05,2]
[347737346,1736087465872,-723.31,9.315e-05,2]
[347737347,1736087465882,-500.0,9.315e-05,2]
[347737348,1736087465892,-760.01,9.315e-05,2]
[347737349,1736087465901,-734.13,9.315e-05,2]
[347737350,1736087465911,-1428.45,9.315e-05,2]
[347737351,1736087465921,-500.0,9.315e-05,2]
[347737352,1736087465930,-824.53,9.315e-05,2]
[347737353,1736087465941,-2038.47,9.315e-05,2]
[347737354,1736087465953,-500.0,9.315e-05,2]
[347737355,1736087465963,-1178.06,9.315e-05,2]
[347737356,1736087465972,-665.54,9.315e-05,2]
[347737357,1736087465982,-841.67,9.315e-05,2]
[347737358,1736087465991,-567.9,9.315e-05,2]
[347737359,1736087466000,-501.11,9.315e-05,2]
[347737360,1736087466010,-743.28,9.315e-05,2]
[347737361,1736087466020,-629.72,9.315e-05,2]
[347737362,1736087466030,-1735.99,9.315e-05,2]
[347737363,1736087466040,-1632.07,9.315e-05,2]
[347737364,1736087466051,-1243.34,9.315e-05,2]
[347737365,1736087466061,-500.0,9.315e-05,2]
[347737366,1736087466071,-863.18,9.315e-05,2]
[347737367,1736087466080,-740.77,9.315e-05,2]
[347737368,1736087466091,-652.36,9.315e-05,2]
[347737369,1736087466100,-982.16,9.315e-05,2]
[347737370,1736087466111,-275.45,9.315e-05,2]
[347737371,1736087466121,-500.0,9.315e-05,2]
[347737372,1736087466131,-926.05,9.315e-05,2]
[347737373,1736087466141,-1594.81,9.315e-05,2]
[347737374,1736087466151,-676.75,9.315e-05,2]
[347737375,1736087466161,-1315.68,9.315e-05,2]
[347737376,1736087466171,-677.8,9.315e-05,2]
[347737377,1736087466180,-2577.87,9.315e-05,2]
[347737378,1736087466190,-500.0,9.315e-05,2]
[347737379,1736087466201,-1785.83,9.315e-05,2]
[347737380,1736087466211,-749.64,9.315e-05,2]
[347737381,1736087466220,-1591.99,9.315e-05,2]
[347737382,1736087466231,-665.75,9.315e-05,2]
[347737383,1736087466242,-500.0,9.315e-05,2]
[347737384,1736087466252,-697.79,9.315e-05,2]
[347737385,1736087466262,-1315.89,9.315e-05,2]
[347737386,1736087466273,-500.0,9.315e-05,2]
[347737387,1736087466283,-1730.96,9.315e-05,2]
[347737388,1736087466292,-500.0,9.315e-05,2]
[347737389,1736087466302,-1071.44,9.315e-05,2]
[347737390,1736087466312,-500.0,9.315e-05,2]
[347737391,1736087466322,-1369.17,9.315e-05,2]
[347737392,1736087466332,-1027.49,9.315e-05,2]
[347737393,1736087466342,-500.0,9.315e-05,2]
[347737394,1736087466351,-780.04,9.315e-05,2]
[347737395,1736087466363,-500.0,9.315e-05,2]
[347737396,1736087466373,-500.0,9.315e-05,2]
[347737397,1736087466383,-500.0,9.315e-05,2]
[347737398,1736087466393,-714.9,9.315e-05,2]
[347737399,1736087466403,-500.0,9.315e-05,2]
[347737400,1736087466412,-761.44,9.315e-05,2]
[347737401,1736087466423,-654.93,9.315e-05,2]
[347737402,1736087466433,-4721.47,9.315e-05,2]
[347737403,1736087466442,-1241.25,9.315e-05,2]
[347737404,1736087466452,-225.82507234,9.315e-05,2]
[347737405,1736087466461,-1218.9,9.315e-05,2]
[347737406,1736087466471,-500.0,9.315e-05,2]
[347737407,1736087466481,-500.0,9.315e-05,2]
[347737408,1736087466491,-500.0,9.315e-05,2]
[347737409,1736087466501,-2665.79,9.315e-05,2]
[347737410,1736087466510,-760.67,9.315e-05,2]
[347737411,1736087466520,-500.0,9.315e-05,2]
[347737412,1736087466530,-508.23,9.315e-05,2]
[347737413,1736087466540,-4518.88,9.315e-05,2]
[347737414,1736087466550,-500.0,9.315e-05,2]
[347737415,1736087466560,-971.8,9.315e-05,2]
[347737416,1736087466570,-500.0,9.315e-05,2]
[347737417,1736087466579,-748.36,9.315e-05,2]
[347737418,1736087466589,-1454.08,9.315e-05,2]
[347737419,1736087466599,-632.83,9.315e-05,2]
[347737420,1736087466609,-3596.85,9.315e-05,2]
[347737421,1736087466618,-1144.8,9.315e-05,2]
[347737422,1736087466628,-3009.84,9.315e-05,2]
[347737423,1736087466638,-1306.84,9.315e-05,2]
[347737424,1736087466648,-1172.62,9.315e-05,2]
[347737425,1736087466657,-1053.43,9.315e-05,2]
[347737426,1736087466666,-2149.95,9.315e-05,2]
[347737427,1736087466676,-4867.27,9.315e-05,2]
[347737428,1736087466685,-956.06,9.315e-05,2]
[347737429,1736087466694,-3847.94,9.315e-05,2]
[347737430,1736087466703,-745.14,9.315e-05,2]
[347737431,1736087466714,-928.53,9.315e-05,2]
[347737432,1736087466724,-573.78,9.315e-05,2]
[347737433,1736087466734,-1744.35,9.315e-05,2]
[347737434,1736087466743,-917.07,9.315e-05,2]
[347737435,1736087466753,-3460.52,9.315e-05,2]
[347737436,1736087466762,-12077.17,9.315e-05,2]
[347737437,1736087466771,-500.0,9.315e-05,2]
[347737438,1736087466782,-1317.55,9.315e-05,2]
[347737439,1736087466792,-1712.07,9.315e-05,2]
[347737440,1736087466801,-4603.7,9.315e-05,2]
[347737441,1736087466811,-586.81,9.315e-05,2]
[347737442,1736087466820,-7134.1,9.315e-05,2]
[347737443,1736087466830,-2511.05,9.315e-05,2]
[347737444,1736087466840,-1211.2,9.315e-05,2]
[347737445,1736087466849,-3861.99,9.315e-05,2]
[347737446,1736087466861,-766.97,9.315e-05,2]
[347737447,1736087466873,-500.0,9.315e-05,2]
[347737448,1736087466882,-1929.34,9.315e-05,2]
[347737449,1736087466891,-1125.8,9.315e-05,2]
[347737450,1736087466901,-841.04,9.315e-05,2]
[347737451,1736087466910,-5390.32,9.315e-05,2]
[347737452,1736087466920,-1134.92,9.315e-05,2]
[347737453,1736087466930,-805.42,9.315e-05,2]
[347737454,1736087466939,-569.83,9.315e-05,2]
[347737455,1736087466952,-6872.1,9.315e-05,2]
[347737456,1736087466962,-521.77,9.315e-05,2]
[347737457,1736087466972,-2538.04,9.315e-05,2]
[347737458,1736087466981,-1929.3,9.315e-05,2]
[347737459,1736087466990,-942.19,9.315e-05,2]
[347737460,1736087467000,-2963.68,9.315e-05,2]
[347737461,1736087467009,-3891.85,9.315e-05,2]
[347737462,1736087467018,-1395.54,9.315e-05,2]
[347737463,1736087467027,-1405.3,9.315e-05,2]
[347737464,1736087467037,-945.67,9.315e-05,2]
[347737465,1736087467047,-500.0,9.315e-05,2]
[347737466,1736087467056,-1847.98,9.315e-05,2]
[347737467,1736087467066,-500.0,9.315e-05,2]
[347737468,1736087467075,-5368.34,9.315e-05,2]
[347737469,1736087467085,-5006.82,9.315e-05,2]
[347737470,1736087467094,-1808.06,9.315e-05,2]
[347737471,1736087467104,-650.58,9.315e-05,2]
[347737472,1736087467114,-1773.48,9.315e-05,2]
[347737473,1736087467124,-6404.36,9.315e-05,2]
[347737474,1736087467134,-3111.48,9.315e-05,2]
[347737475,1736087467143,-901.65,9.315e-05,2]
[347737476,1736087467154,-2824.28,9.315e-05,2]
[347737477,1736087467165,-5155.77,9.315e-05,2]
[347737478,1736087467174,-3443.73,9.315e-05,2]
[347737479,1736087467184,-1458.21,9.315e-05,2]
[347737480,1736087467193,-748.88,9.315e-05,2]
[347737481,1736087467203,-1521.28,9.315e-05,2]
[347737482,1736087467212,-2067.6,9.315e-05,2]
[347737483,1736087467222,-5645.3,9.315e-05,2]
[347737484,1736087467231,-1159.91,9.315e-05,2]
[347737485,1736087467241,-555.26,9.315e-05,2]
[347737486,1736087467250,-1115.77,9.315e-05,2]
[347737487,1736087467260,-2759.01,9.315e-05,2]
[347737488,1736087467269,-1223.55,9.315e-05,2]
[347737489,1736087467279,-3061.12,9.315e-05,2]
[347737490,1736087467289,-2364.91,9.315e-05,2]
[347737491,1736087467299,-1106.77,9.315e-05,2]
[347737492,1736087467308,-1536.35,9.315e-05,2]
[347737493,1736087467318,-879.52,9.315e-05,2]
[347737494,1736087467327,-506.04,9.315e-05,2]
[347737495,1736087467337,-699.73,9.315e-05,2]
[347737496,1736087467347,-1123.2,9.315e-05,2]
[347737497,1736087467357,-2186.84,9.315e-05,2]
[347737498,1736087467367,-500.0,9.315e-05,2]
[347737499,1736087467377,-1485.74,9.315e-05,2]
[347737500,1736087467386,-662.65,9.315e-05,2]
[347737501,1736087467396,-2310.84,9.315e-05,2]
[347737502,1736087467405,-1449.67,9.315e-05,2]
[347737503,1736087467415,-732.61,9.315e-05,2]
[347737504,1736087467424,-1510.38,9.315e-05,2]
[347737505,1736087467434,-1624.68,9.315e-05,2]
[347737506,1736087467444,-1317.06,9.315e-05,2]
[347737507,1736087467453,-818.3,9.315e-05,2]
[347737508,1736087467462,-565.58,9.315e-05,2]
[347737509,1736087467472,-500.0,9.315e-05,2]
[347737510,1736087467481,-1328.64,9.315e-05,2]
[347737511,1736087467491,-732.45,9.315e-05,2]
[347737512,1736087467500,-500.0,9.315e-05,2]
[347737513,1736087467510,-882.95,9.315e-05,2]
[347737514,1736087467520,-2550.53,9.315e-05,2]
[347737515,1736087467531,-533.7,9.315e-05,2]
[347737516,1736087467541,-1751.15,9.315e-05,2]
[347737517,1736087467550,-864.64,9.315e-05,2]
[347737518,1736087467560,-1774.07,9.315e-05,2]
[347737519,1736087467569,-2874.65,9.315e-05,2]
[347737520,1736087467579,-800.29,9.315e-05,2]
[347737521,1736087467589,-877.13,9.315e-05,2]
[347737522,1736087467599,-577.28,9.315e-05,2]
[347737523,1736087467609,-500.0,9.315e-05,2]
[347737524,1736087467618,-1180.17,9.315e-05,2]
[347737525,1736087467628,-1073.55,9.315e-05,2]
[347737526,1736087467637,-1014.49,9.315e-05,2]
[347737527,1736087467647,-4347.54,9.315e-05,2]
[347737528,1736087467657,-1330.12,9.315e-05,2]
[347737529,1736087467667,-600.32,9.315e-05,2]
[347737530,1736087467676,-1436.65,9.315e-05,2]
[347737531,1736087467685,-1657.93,9.315e-05,2]
[347737532,1736087467694,-599.67,9.315e-05,2]
[347737533,1736087467704,-1031.98,9.315e-05,2]
[347737534,1736087467713,-686.4,9.315e-05,2]
[347737535,1736087467722,-771.32,9.315e-05,2]
[347737536,1736087467730,-150.0,9.329e-05,2]
[347737537,1736087467740,-150.0,9.376e-05,2]
[347737538,1736087467750,-150.0,9.397e-05,2]
[347737539,1736087467760,-150.0,9.397e-05,2]
[347737540,1736087467769,-402.849,9.41e-05,2]
[347737541,1736087467778,-150.0,9.482e-05,2]
[347737542,1736087467788,-150.0,9.512e-05,2]
[347737543,1736087467798,-500.0,9.58e-05,2]
[347737544,1736087467807,-500.0,9.588e-05,2]
[347737545,1736087467817,-500.0,9.588e-05,2]
[347737546,1736087467826,-539.14,9.588e-05,2]
[347737547,1736087467836,-554.11,9.588e-05,2]
[347737548,1736087467845,-500.0,9.588e-05,2]
[347737549,1736087467855,-633.48,9.588e-05,2]
[347737550,1736087467864,-500.0,9.588e-05,2]
[347737551,1736087467874,-549.43,9.588e-05,2]
[347737552,1736087467884,-500.0,9.588e-05,2]
[347737553,1736087467895,-656.44,9.588e-05,2]
[347737554,1736087467905,-500.0,9.588e-05,2]
[347737555,1736087467915,-500.0,9.588e-05,2]
[347737556,1736087467925,-582.20287283,9.588e-05,2]
[347737557,1736087467935,-500.0,9.588e-05,2]
[347737558,1736087468005,-509.84,9.588e-05,2]
[347737559,1736087468015,-500.0,9.588e-05,2]
[347737560,1736087468024,-500.0,9.588e-05,2]
[347737561,1736087468033,-291.03350364,9.588e-05,2]
[347737562,1736087468042,-500.0,9.588e-05,2]
[347737563,1736087468051,-500.0,9.588e-05,2]
[347737564,1736087468061,-641.45,9.588e-05,2]
[347737565,1736087468070,-500.0,9.588e-05,2]
[347737566,1736087468080,-268.91779124,9.588e-05,2]
[347737567,1736087468089,-500.0,9.588e-05,2]
[347737568,1736087468099,-519.93,9.588e-05,2]
[347737569,1736087468110,-500.0,9.588e-05,2]
[347737570,1736087468120,-500.0,9.588e-05,2]
[347737571,1736087468129,-500.0,9.588e-05,2]
[347737572,1736087468138,-500.0,9.588e-05,2]
[347737573,1736087468148,-500.0,9.588e-05,2]
[347737574,1736087468158,-500.0,9.588e-05,2]
[347737575,1736087468167,-947.94,9.588e-05,2]
[347737576,1736087468177,-500.0,9.588e-05,2]
[347737577,1736087468186,-771.06,9.588e-05,2]
[347737578,1736087468195,-500.0,9.588e-05,2]
[347737579,1736087468205,-500.0,9.588e-05,2]
[347737580,1736087468216,-500.0,9.588e-05,2]
[347737581,1736087468225,-500.0,9.588e-05,2]
[347737582,1736087468234,-500.0,9.588e-05,2]
[347737583,1736087468244,-500.0,9.588e-05,2]
[347737584,1736087468253,-758.28,9.588e-05,2]
[347737585,1736087468263,-540.11784156,9.588e-05,2]
[347737586,1736087468272,-500.0,9.588e-05,2]
[347737587,1736087468282,-500.0,9.588e-05,2]
[347737588,1736087468291,-522.41,9.588e-05,2]
[347737589,1736087468300,-500.0,9.588e-05,2]
[347737590,1736087468311,-500.0,9.588e-05,2]
[347737591,1736087468320,-695.0,9.588e-05,2]
[347737592,1736087468332,-500.0,9.588e-05,2]
[347737593,1736087468342,-500.0,9.588e-05,2]
[347737594,1736087468351,-500.0,9.588e-05,2]
[347737595,1736087468361,-500.0,9.588e-05,2]
[347737596,1736087468370,-500.0,9.588e-05,2]
[347737597,1736087468380,-500.0,9.588e-05,2]
[347737598,1736087468390,-644.71,9.588e-05,2]
[347737599,1736087468399,-500.0,9.588e-05,2]
[347737600,1736087468410,-500.0,9.588e-05,2]
[347737601,1736087468420,-500.0,9.588e-05,2]
[347737602,1736087468432,-500.0,9.588e-05,2]
[347737603,1736087468443,-500.0,9.588e-05,2]
[347737604,1736087468452,-500.0,9.588e-05,2]
[347737605,1736087468462,-500.0,9.588e-05,2]
[347737606,1736087468473,-635.97,9.588e-05,2]
[347737607,1736087468483,-500.0,9.588e-05,2]
[347737608,1736087468494,-500.0,9.588e-05,2]
[347737609,1736087468505,-500.0,9.588e-05,2]
[347737610,1736087468514,-500.0,9.588e-05,2]
[347737611,1736087468524,-500.0,9.588e-05,2]
[347737612,1736087468534,-779.91,9.588e-05,2]
[347737613,1736087468544,-558.76,9.588e-05,2]
[347737614,1736087468554,-645.46,9.588e-05,2]
[347737615,1736087468564,-857.29,9.588e-05,2]
[347737616,1736087468574,-500.0,9.588e-05,2]
[347737617,1736087468583,-500.0,9.588e-05,2]
[347737618,1736087468593,-500.0,9.588e-05,2]
[347737619,1736087468603,-500.0,9.588e-05,2]
[347737620,1736087468614,-560.06,9.588e-05,2]
[347737621,1736087468624,-500.0,9.588e-05,2]
[347737622,1736087468633,-500.0,9.588e-05,2]
[347737623,1736087468644,-813.35,9.588e-05,2]
[347737624,1736087468653,-500.0,9.588e-05,2]
[347737625,1736087468663,-500.0,9.588e-05,2]
[347737626,1736087468672,-500.0,9.588e-05,2]
[347737627,1736087468681,-500.0,9.588e-05,2]
[347737628,1736087468690,-709.28,9.588e-05,2]
[347737629,1736087468700,-933.58,9.588e-05,2]
[347737630,1736087468710,-500.0,9.588e-05,2]
[347737631,1736087468719,-573.08,9.588e-05,2]
[347737632,1736087468728,-500.0,9.588e-05,2]
[347737633,1736087468737,-910.71,9.588e-05,2]
[347737634,1736087468747,-500.0,9.588e-05,2]
[347737635,1736087468756,-500.0,9.588e-05,2]
[347737636,1736087468766,-500.0,9.588e-05,2]
[347737637,1736087468777,-500.0,9.588e-05,2]
[347737638,1736087468787,-579.63,9.588e-05,2]
[347737639,1736087468796,-500.0,9.588e-05,2]
[347737640,1736087468807,-500.0,9.588e-05,2]
[347737641,1736087468821,-500.0,9.588e-05,2]
[347737642,1736087468833,-500.0,9.588e-05,2]
[347737643,1736087468843,-500.0,9.588e-05,2]
[347737644,1736087468854,-736.49,9.588e-05,2]
[347737645,1736087468866,-500.0,9.588e-05,2]
[347737646,1736087468876,-500.0,9.588e-05,2]
[347737647,1736087468886,-500.0,9.588e-05,2]
[347737648,1736087468895,-500.0,9.588e-05,2]
[347737649,1736087468905,-500.0,9.588e-05,2]
[347737650,1736087468914,-608.15,9.588e-05,2]
[347737651,1736087468924,-500.0,9.588e-05,2]
[347737652,1736087468933,-500.0,9.588e-05,2]
[347737653,1736087468946,-500.0,9.588e-05,2]
[347737654,1736087468957,-500.0,9.588e-05,2]
[347737655,1736087468967,-658.6,9.588e-05,2]
[347737656,1736087468977,-500.0,9.588e-05,2]
[347737657,1736087468987,-500.0,9.588e-05,2]
[347737658,1736087468996,-500.0,9.588e-05,2]
[347737659,1736087469007,-500.0,9.588e-05,2]
[347737660,1736087469017,-500.0,9.588e-05,2]
[347737661,1736087469027,-500.0,9.588e-05,2]
[347737662,1736087469038,-500.0,9.588e-05,2]
[347737663,1736087469048,-500.0,9.588e-05,2]
[347737664,1736087469057,-500.0,9.588e-05,2]
[347737665,1736087469068,-500.0,9.588e-05,2]
[347737666,1736087469078,-545.77,9.588e-05,2]
[347737667,1736087469088,-500.0,9.588e-05,2]
[347737668,1736087469098,-545.27,9.588e-05,2]
[347737669,1736087469108,-500.0,9.588e-05,2]
[347737670,1736087469117,-792.12,9.588e-05,2]
[347737671,1736087469127,-3029.06,9.588e-05,2]
[347737672,1736087469137,-844.73,9.588e-05,2]
[347737673,1736087469147,-1554.62,9.588e-05,2]
[347737674,1736087469156,-500.0,9.588e-05,2]
[347737675,1736087469166,-1642.54,9.589e-05,2]
[347737676,1736087469176,-500.0,9.589e-05,2]
[347737677,1736087469186,-3807.68,9.589e-05,2]
[347737678,1736087469196,-3354.98,9.589e-05,2]
[347737679,1736087469206,-2557.36,9.589e-05,2]
[347737680,1736087469216,-500.0,9.589e-05,2]
[347737681,1736087469225,-500.0,9.589e-05,2]
[347737682,1736087469235,-4574.93,9.589e-05,2]
[347737683,1736087469245,-692.96,9.589e-05,2]
[347737684,1736087469254,-563.0,9.589e-05,2]
[347737685,1736087469264,-4805.9,9.589e-05,2]
[347737686,1736087469274,-500.0,9.589e-05,2]
[347737687,1736087469284,-7875.64,9.589e-05,2]
[347737688,1736087469293,-500.0,9.589e-05,2]
[347737689,1736087469303,-500.0,9.589e-05,2]
[347737690,1736087469314,-500.0,9.589e-05,2]
[347737691,1736087469324,-576.43,9.589e-05,2]
[347737692,1736087469335,-500.0,9.589e-05,2]
[347737693,1736087469345,-613.23,9.589e-05,2]
[347737694,1736087469355,-698.39,9.589e-05,2]
[347737695,1736087469367,-1537.2,9.589e-05,2]
[347737696,1736087469377,-500.0,9.589e-05,2]
[347737697,1736087469387,-2922.88,9.589e-05,2]
[347737698,1736087469396,-611.39,9.589e-05,2]
[347737699,1736087469406,-500.0,9.589e-05,2]
[347737700,1736087469416,-938.55,9.589e-05,2]
[347737701,1736087469426,-1444.28,9.589e-05,2]
[347737702,1736087469436,-225.04875418,9.589e-05,2]
[347737703,1736087469446,-996.14,9.589e-05,2]
[347737704,1736087469456,-533.69,9.589e-05,2]
[347737705,1736087469467,-500.0,9.589e-05,2]
[347737706,1736087469476,-602.64,9.589e-05,2]
[347737707,1736087469486,-510.46,9.589e-05,2]
[347737708,1736087469496,-5569.43,9.589e-05,2]
[347737709,1736087469505,-758.58,9.589e-05,2]
[347737710,1736087469515,-500.0,9.589e-05,2]
[347737711,1736087469525,-673.22,9.589e-05,2]
[347737712,1736087469534,-500.0,9.589e-05,2]
[347737713,1736087469543,-500.0,9.589e-05,2]
[347737714,1736087469553,-1180.17,9.589e-05,2]
[347737715,1736087469563,-500.0,9.589e-05,2]
[347737716,1736087469572,-1046.53,9.589e-05,2]
[347737717,1736087469582,-608.8,9.589e-05,2]
[347737718,1736087469591,-614.88,9.589e-05,2]
[347737719,1736087469600,-1270.54,9.589e-05,2]
[347737720,1736087469613,-646.03,9.589e-05,2]
[347737721,1736087469622,-500.0,9.589e-05,2]
[347737722,1736087469632,-500.0,9.589e-05,2]
[347737723,1736087469642,-500.0,9.589e-05,2]
[347737724,1736087469652,-500.0,9.589e-05,2]
[347737725,1736087469662,-1746.53,9.589e-05,2]
[347737726,1736087469671,-638.28,9.589e-05,2]
[347737727,1736087469681,-500.0,9.589e-05,2]
[347737728,1736087469690,-813.03,9.589e-05,2]
[347737729,1736087469700,-636.41,9.589e-05,2]
[347737730,1736087469709,-861.08,9.589e-05,2]
[347737731,1736087469719,-500.0,9.589e-05,2]
[347737732,1736087469728,-691.19,9.589e-05,2]
[347737733,1736087469737,-569.3,9.589e-05,2]
[347737734,1736087469746,-1185.52,9.589e-05,2]
[347737735,1736087469755,-3515.39,9.589e-05,2]
[347737736,1736087469765,-1147.13,9.589e-05,2]
[347737737,1736087469775,-500.0,9.589e-05,2]
[347737738,1736087469784,-879.06,9.589e-05,2]
[347737739,1736087469794,-818.0,9.589e-05,2]
[347737740,1736087469804,-1114.61,9.589e-05,2]
[347737741,1736087469814,-500.0,9.589e-05,2]
[347737742,1736087469823,-1021.84,9.589e-05,2]
[347737743,1736087469833,-500.0,9.589e-05,2]
[347737744,1736087469842,-500.0,9.589e-05,2]
[347737745,1736087469852,-698.7,9.589e-05,2]
[347737746,1736087469863,-624.66,9.589e-05,2]
[347737747,1736087469873,-738.42,9.589e-05,2]
[347737748,1736087469883,-500.0,9.589e-05,2]
[347737749,1736087469894,-500.0,9.589e-05,2]
[347737750,1736087469904,-605.13,9.589e-05,2]
[347737751,1736087469914,-1424.29,9.589e-05,2]
[347737752,1736087469923,-1100.5,9.589e-05,2]
[347737753,1736087469933,-500.0,9.589e-05,2]
[347737754,1736087469942,-645.23,9.589e-05,2]
[347737755,1736087469955,-528.75,9.589e-05,2]
[347737756,1736087469965,-906.79,9.589e-05,2]
[347737757,1736087469975,-728.95,9.589e-05,2]
[347737758,1736087469985,-691.64,9.589e-05,2]
[347737759,1736087469994,-589.99,9.589e-05,2]
[347737760,1736087470004,-500.0,9.589e-05,2]
[347737761,1736087470014,-1480.26,9.589e-05,2]
[347737762,1736087470023,-1775.43,9.589e-05,2]
[347737763,1736087470033,-743.22,9.589e-05,2]
[347737764,1736087470043,-781.44,9.589e-05,2]
[347737765,1736087470052,-699.6,9.589e-05,2]
[347737766,1736087470062,-500.0,9.589e-05,2]
[347737767,1736087470072,-968.92,9.589e-05,2]
[347737768,1736087470081,-500.0,9.589e-05,2]
[347737769,1736087470091,-616.91,9.589e-05,2]
[347737770,1736087470101,-1140.5,9.589e-05,2]
[347737771,1736087470113,-514.64,9.589e-05,2]
[347737772,1736087470123,-524.1,9.589e-05,2]
[347737773,1736087470133,-918.55,9.589e-05,2]
[347737774,1736087470142,-702.75,9.589e-05,2]
[347737775,1736087470152,-500.0,9.589e-05,2]
[347737776,1736087470162,-1033.65,9.589e-05,2]
[347737777,1736087470172,-995.5,9.589e-05,2]
[347737778,1736087470182,-1082.324567,9.589e-05,2]
[347737779,1736087470193,-2079.48,9.589e-05,2]
[347737780,1736087470202,-500.0,9.589e-05,2]
[347737781,1736087470213,-500.0,9.589e-05,2]
[347737782,1736087470222,-500.0,9.589e-05,2]
[347737783,1736087470233,-1050.75,9.589e-05,2]
[347737784,1736087470243,-2288.37,9.589e-05,2]
[347737785,1736087470251,-500.0,9.589e-05,2]
[347737786,1736087470260,-731.7,9.589e-05,2]
[347737787,1736087470270,-624.19,9.589e-05,2]
[347737788,1736087470279,-500.0,9.589e-05,2]
[347737789,1736087470289,-1187.11,9.589e-05,2]
[347737790,1736087470299,-757.3,9.589e-05,2]
[347737791,1736087470309,-500.0,9.589e-05,2]
[347737792,1736087470318,-621.88,9.589e-05,2]
[347737793,1736087470328,-1098.17,9.589e-05,2]
[347737794,1736087470337,-726.88,9.589e-05,2]
[347737795,1736087470347,-1226.741349,9.589e-05,2]
[347737796,1736087470356,-500.0,9.589e-05,2]
[347737797,1736087470367,-1252.46,9.589e-05,2]
[347737798,1736087470376,-1865.96,9.589e-05,2]
[347737799,1736087470385,-500.0,9.589e-05,2]
[347737800,1736087470395,-678.98,9.589e-05,2]
[347737801,1736087470405,-536.82,9.589e-05,2]
[347737802,1736087470415,-547.99,9.589e-05,2]
[347737803,1736087470425,-773.79,9.589e-05,2]
[347737804,1736087470435,-3163.81,9.589e-05,2]
[347737805,1736087470445,-500.0,9.589e-05,2]
[347737806,1736087470455,-2381.79,9.589e-05,2]
[347737807,1736087470464,-640.07,9.589e-05,2]
[347737808,1736087470474,-626.77,9.589e-05,2]
[347737809,1736087470483,-1289.71,9.589e-05,2]
[347737810,1736087470493,-500.0,9.589e-05,2]
[347737811,1736087470502,-500.0,9.589e-05,2]
[347737812,1736087470512,-500.0,9.589e-05,2]
[347737813,1736087470522,-1260.65,9.589e-05,2]
[347737814,1736087470532,-723.31,9.589e-05,2]
[347737815,1736087470541,-760.01,9.589e-05,2]
[347737816,1736087470551,-500.0,9.589e-05,2]
[347737817,1736087470560,-734.13,9.589e-05,2]
[347737818,1736087470570,-1428.45,9.589e-05,2]
[347737819,1736087470581,-333.78,9.589e-05,2]
[347737820,1736087470591,-824.53,9.589e-05,2]
[347737821,1736087470600,-2038.47,9.589e-05,2]
[347737822,1736087470612,-500.0,9.589e-05,2]
[347737823,1736087470622,-1178.06,9.589e-05,2]
[347737824,1736087470632,-665.54,9.589e-05,2]
[347737825,1736087470642,-841.67,9.589e-05,2]
[347737826,1736087470652,-567.9,9.589e-05,2]
[347737827,1736087470661,-501.11,9.589e-05,2]
[347737828,1736087470671,-743.28,9.589e-05,2]
[347737829,1736087470681,-629.72,9.589e-05,2]
[347737830,1736087470692,-1735.99,9.589e-05,2]
[347737831,1736087470701,-1632.07,9.589e-05,2]
[347737832,1736087470711,-1243.34,9.589e-05,2]
[347737833,1736087470721,-500.0,9.589e-05,2]
[347737834,1736087470731,-863.18,9.589e-05,2]
[347737835,1736087470741,-740.77,9.589e-05,2]
[347737836,1736087470751,-652.36,9.589e-05,2]
[347737837,1736087470760,-982.16,9.589e-05,2]
[347737838,1736087470770,-500.0,9.589e-05,2]
[347737839,1736087470780,-926.05,9.589e-05,2]
[347737840,1736087470789,-1594.81,9.589e-05,2]
[347737841,1736087470799,-676.75,9.589e-05,2]
[347737842,1736087470809,-1315.68,9.589e-05,2]